bitfinex/quotes_BTCUSD_20251208
["timestamp","ask_amount","ask_price","bid_price","bid_amount"]
[1765168902144,0.03951599,91260.0,91259.0,0.001]
[1765168902335,0.26963011,91260.0,91257.0,0.00077499]
[1765168902517,0.26963011,91260.0,91259.0,0.004]
[1765168903146,0.26963011,91260.0,91259.0,0.003]
[1765168903558,0.27063011,91260.0,91259.0,0.003]
[1765168903979,0.26963011,91260.0,91259.0,0.003]
[1765168904194,0.26963011,91260.0,91257.0,0.00077499]
[1765168904398,0.27063011,91260.0,91259.0,0.001]
[1765168905126,0.27063011,91260.0,91259.0,0.002]
[1765168905662,0.05047369,91260.0,91259.0,0.001]
[1765168905803,0.05147369,91260.0,91259.0,0.001]
[1765168906320,0.05047369,91260.0,91259.0,0.001]
[1765168906701,0.05147369,91260.0,91259.0,0.002]
[1765168907446,0.05254645,91260.0,91259.0,0.002]
[1765168908399,0.06279433,91260.0,91259.0,0.002]
[1765168913900,0.05183663,91260.0,91259.0,0.002]
[1765168914111,0.02856788,91260.0,91259.0,0.00254011]
[1765168914334,0.001,91260.0,91259.0,0.07955011]
[1765168914529,0.001,91260.0,91259.0,0.10146575]
[1765168914934,0.001,91260.0,91259.0,0.07955011]
[1765168915473,0.001,91260.0,91259.0,0.09787035]
[1765168915806,0.001,91260.0,91259.0,0.07955011]
[1765168919053,0.001,91260.0,91259.0,0.03208011]
[1765168919257,0.001,91260.0,91259.0,0.00254011]
[1765168921251,0.001,91260.0,91259.0,0.02937011]
[1765168921457,0.001,91260.0,91259.0,0.08719562]
[1765168922692,0.01732,91273.0,91270.0,0.0109565]
[1765168923009,0.01732,91273.0,91267.0,0.01095686]
[1765168923010,0.01732,91273.0,91272.0,0.02092]
[1765168923224,0.0109565,91270.0,91265.0,0.02092]
[1765168923769,0.01134655,91270.0,91265.0,0.02092]
[1765168924400,0.001,91260.0,91259.0,0.00254011]
[1765168924609,0.01849483,91260.0,91259.0,0.002]
[1765168924825,0.05094918,91260.0,91259.0,0.002]
[1765168924998,0.05094918,91260.0,91245.0,0.0109595]
[1765168924999,0.24135245,91259.0,91250.0,0.0109589]
[1765168925201,0.01025905,91258.0,91249.0,0.01095902]
[1765168925432,0.01025905,91258.0,91251.0,0.01095878]
[1765168925619,0.01025905,91258.0,91252.0,0.01095866]
[1765168926499,0.01025905,91258.0,91254.0,0.01095842]
[1765168926729,0.01125905,91258.0,91257.0,0.02706488]
[1765168927042,0.001,91258.0,91257.0,0.06813499]
[1765168927691,0.002,91258.0,91257.0,0.06913499]
[1765168928251,0.002,91258.0,91257.0,0.08640311]
[1765168928453,0.001,91258.0,91257.0,0.08540311]
[1765168928870,0.002,91258.0,91257.0,0.08740311]
[1765168929124,0.001,91258.0,91257.0,0.08740311]
[1765168929330,0.01771005,91270.0,91267.0,0.01095686]
[1765168929623,0.02797053,91270.0,91267.0,0.01095686]
[1765168930414,0.03892703,91270.0,91267.0,0.01095686]
[1765168930578,0.01026048,91269.0,91266.0,0.02092]
[1765168930790,0.0212171,91269.0,91266.0,0.02092]
[1765168931133,0.21913485,91268.0,91266.0,0.02092]
[1765168931697,0.21913485,91268.0,91267.0,0.001]
[1765168931904,0.23046647,91268.0,91267.0,0.001]
[1765168932101,0.23046647,91268.0,91259.0,0.01095782]
[1765168932102,0.03315345,91262.0,91259.0,0.01095782]
[1765168932304,0.01642207,91260.0,91258.0,0.01095794]
[1765168932506,0.02737977,91260.0,91257.0,0.00077499]
[1765168932674,0.23647646,91259.0,91257.0,0.00077499]
[1765168933747,0.02363715,91267.0,91264.0,0.01095722]
[1765168934096,0.00207276,91268.0,91265.0,0.0109571]
[1765168934214,0.00107276,91268.0,91265.0,0.0109571]
[1765168934610,0.00107276,91268.0,91266.0,0.21913965]
[1765168935032,0.0106493,91270.0,91268.0,0.2191342]
[1765168935248,0.01771005,91270.0,91269.0,0.02848]
[1765168935482,0.01771005,91270.0,91269.0,0.07198]
[1765168936090,0.0299693,91270.0,91269.0,0.07252011]
[1765168936329,0.01971005,91270.0,91269.0,0.07252011]
[1765168936499,0.00039005,91270.0,91269.0,0.07252011]
[1765168936731,0.00239005,91270.0,91269.0,0.07252011]
[1765168936885,0.00239005,91270.0,91269.0,0.00054011]
[1765168937056,0.00339005,91270.0,91269.0,0.00054011]
[1765168937480,0.00339005,91270.0,91269.0,0.02902011]
[1765168937683,0.00239005,91270.0,91269.0,0.00054011]
[1765168937886,0.00339005,91270.0,91269.0,0.00154011]
[1765168938082,0.00339005,91270.0,91269.0,0.001]
[1765168938083,0.00246281,91270.0,91269.0,0.001]
[1765168938422,0.02219599,91258.0,91255.0,0.0109583]
[1765168939288,0.03951599,91259.0,91256.0,0.01095818]
[1765168939497,0.01642207,91258.0,91256.0,0.01095818]
[1765168939706,0.01642207,91258.0,91257.0,0.00323488]
[1765168940535,0.01742207,91258.0,91257.0,0.00523488]
[1765168941836,0.01742207,91258.0,91257.0,0.00577499]
[1765168943816,0.01742207,91258.0,91257.0,0.03425499]
[1765168944345,0.01742207,91258.0,91257.0,0.00577499]
[1765168945924,0.001,91258.0,91257.0,0.07775499]
[1765168947047,0.001,91258.0,91257.0,0.09607058]
[1765168947405,0.001,91258.0,91257.0,0.09607249]
[1765168947575,0.001,91258.0,91257.0,0.07775499]
[1765168948359,0.001,91258.0,91257.0,0.09967111]
[1765168960167,0.001,91258.0,91257.0,0.12107111]
[1765168962343,0.001,91258.0,91257.0,0.05565499]
[1765168962542,0.001,91258.0,91257.0,0.09601499]
[1765168965086,0.001,91258.0,91257.0,0.11436971]
[1765168966988,0.001,91258.0,91257.0,0.10848351]
[1765168967121,0.001,91258.0,91257.0,0.11350513]
[1765168983213,0.001,91258.0,91257.0,0.07314513]
[1765168983512,0.001,91258.0,91257.0,0.11061513]
[1765168991706,0.001,91258.0,91257.0,0.09312499]
[1765168993029,0.001,91258.0,91257.0,0.11148163]
[1765168997744,0.001,91258.0,91257.0,0.09312499]
[1765168997896,0.001,91258.0,91257.0,0.13714702]
[1765168998301,0.001,91258.0,91257.0,0.13605121]
[1765168998552,0.00039005,91270.0,91268.0,0.21913485]
[1765168998762,0.00039005,91270.0,91269.0,0.08645359]
[1765168998967,0.00039005,91270.0,91269.0,0.45164976]
[1765168999132,0.00039005,91270.0,91269.0,0.42751602]
[1765168999347,0.00039005,91270.0,91269.0,0.40541011]
[1765169000651,0.00139005,91270.0,91269.0,0.40841011]
[1765169000857,0.00139005,91270.0,91269.0,0.41541011]
[1765169001825,0.00139005,91270.0,91269.0,0.43751602]
[1765169005193,0.00139005,91270.0,91269.0,0.45483602]
[1765169008875,0.00139005,91270.0,91269.0,0.43273011]
[1765169009058,0.00139005,91270.0,91269.0,0.45483602]
[1765169013109,0.00033177,91270.0,91269.0,0.43273011]
[1765169013935,0.00033177,91270.0,91269.0,0.45483602]
[1765169014286,0.00033177,91270.0,91269.0,0.10973011]
[1765169015259,0.00033177,91270.0,91269.0,0.12807464]
[1765169017469,0.00033177,91270.0,91269.0,0.13910082]
[1765169017659,0.00033177,91270.0,91269.0,0.16120673]
[1765169017861,0.00033177,91270.0,91269.0,0.12807464]
[1765169018633,0.00033177,91270.0,91269.0,0.15018055]
[1765169022854,0.00033177,91270.0,91269.0,0.47318055]
[1765169023064,0.00033177,91270.0,91269.0,0.45483602]
[1765169030149,0.00033177,91270.0,91269.0,0.43273011]
[1765169032970,0.00033177,91270.0,91269.0,0.45483602]
[1765169045073,0.00033177,91270.0,91269.0,0.45005011]
[1765169046674,0.00033177,91270.0,91269.0,0.43273011]
[1765169048198,0.00033177,91270.0,91269.0,0.07085011]
[1765169048415,0.00033177,91270.0,91269.0,0.02965011]
[1765169048631,0.00033177,91270.0,91269.0,0.01054011]
[1765169049391,0.01095614,91273.0,91269.0,0.01849673]
[1765169049734,0.01095614,91273.0,91262.0,0.23010549]
[1765169049735,0.01095686,91267.0,91262.0,0.23010549]
[1765169049934,0.01095686,91267.0,91262.0,0.01095746]
[1765169050144,0.01095674,91268.0,91265.0,0.0109571]
[1765169050356,0.01095686,91267.0,91263.0,0.01095734]
[1765169050539,0.01095674,91268.0,91264.0,0.01095722]
[1765169050767,0.01095674,91268.0,91265.0,0.0109571]
[1765169051498,0.01095686,91267.0,91264.0,0.01095722]
[1765169052076,0.01095686,91267.0,91264.0,0.01195722]
[1765169052213,0.01095686,91267.0,91264.0,0.01095722]
[1765169052851,0.01195686,91267.0,91264.0,0.01295722]
[1765169053219,0.01195686,91267.0,91264.0,0.01395722]
[1765169053780,0.01195686,91267.0,91264.0,0.003]
[1765169053937,0.21913965,91266.0,91264.0,0.003]
[1765169054174,0.02219599,91265.0,91264.0,0.003]
[1765169054782,0.02219599,91265.0,91264.0,0.001]
[1765169054986,0.0109577,91260.0,91257.0,0.00023488]
[1765169055185,0.01642207,91258.0,91257.0,0.00023488]
[1765169056001,0.03315297,91266.0,91261.0,0.01095758]
[1765169056201,0.01642207,91262.0,91259.0,0.01095782]
[1765169058005,0.02737953,91262.0,91259.0,0.01095782]
[1765169058212,0.02837953,91262.0,91258.0,0.01095794]
[1765169058839,0.02937953,91262.0,91259.0,0.001]
[1765169059194,0.02837953,91262.0,91258.0,0.01095794]
[1765169059434,0.02737953,91262.0,91258.0,0.01095794]
[1765169059632,0.02937953,91262.0,91258.0,0.01195794]
[1765169060039,0.02937953,91262.0,91259.0,0.01095782]
[1765169060237,0.01842207,91262.0,91259.0,0.01095782]
[1765169060931,0.01642207,91262.0,91259.0,0.01095782]
[1765169061186,0.01742207,91262.0,91259.0,0.01095782]
[1765169061335,0.01842207,91262.0,91260.0,0.21915406]
[1765169062188,0.01742207,91262.0,91259.0,0.01095782]
[1765169062413,0.01742207,91262.0,91260.0,0.001]
[1765169062782,0.01842207,91262.0,91260.0,0.001]
[1765169063886,0.01842207,91262.0,91259.0,0.01095782]
[1765169064188,0.01642207,91262.0,91259.0,0.01095782]
[1765169064391,0.01842207,91262.0,91259.0,0.01195782]
[1765169064608,0.01742207,91262.0,91259.0,0.01195782]
[1765169064804,0.01842207,91262.0,91260.0,0.21915406]
[1765169065101,0.01742207,91262.0,91260.0,0.21915406]
[1765169065436,0.02219599,91260.0,91259.0,0.001]
[1765169065703,0.02219599,91258.0,91257.0,0.00023488]
[1765169065883,0.0109577,91260.0,91257.0,0.00023488]
[1765169066096,0.0109577,91260.0,91257.0,0.01119294]
[1765169066298,0.02937953,91262.0,91259.0,0.01095782]
[1765169066299,0.01842207,91262.0,91259.0,0.01095782]
[1765169066629,0.01842207,91262.0,91258.0,0.01095794]
[1765169066975,0.01742207,91262.0,91258.0,0.01095794]
[1765169067158,0.02737953,91262.0,91258.0,0.01095794]
[1765169067373,0.001,91260.0,91259.0,0.01195782]
[1765169067814,0.01642207,91262.0,91260.0,0.21915406]
[1765169068053,0.01642207,91262.0,91259.0,0.06146782]
[1765169068054,0.01642207,91262.0,91259.0,0.01696]
[1765169068229,0.21915166,91261.0,91258.0,0.00154011]
[1765169068732,0.21915166,91261.0,91258.0,0.00054011]
[1765169068938,0.23010924,91261.0,91260.0,0.001]
[1765169070001,0.25230523,91261.0,91260.0,0.001]
[1765169070273,0.21915886,91258.0,91257.0,0.00023488]
[1765169071866,0.21915886,91258.0,91257.0,0.00123488]
[1765169072208,0.22015886,91258.0,91257.0,0.00323488]
[1765169073397,0.001,91258.0,91257.0,0.00323488]
[1765169076363,0.22015886,91258.0,91257.0,0.00323488]
[1765169081672,0.25262822,91258.0,91257.0,0.00323488]
[1765169083455,0.01127337,91258.0,91257.0,0.00323488]
[1765169083814,0.001,91258.0,91257.0,0.00323488]
[1765169087154,0.01832,91258.0,91257.0,0.06030499]
[1765169089083,0.001,91258.0,91257.0,0.06030499]
[1765169091189,0.001,91258.0,91257.0,0.078683]
[1765169091925,0.02121698,91282.0,91278.0,0.01095554]
[1765169092861,0.02121698,91282.0,91279.0,0.01095542]
[1765169093061,0.01526192,91282.0,91279.0,0.01095542]
[1765169093220,0.007,91282.0,91279.0,0.01095542]
[1765169093428,0.007,91282.0,91278.0,0.01195554]
[1765169093635,0.01526192,91282.0,91279.0,0.01095542]
[1765169094372,0.02621698,91282.0,91278.0,0.01095554]
[1765169094669,0.01095518,91281.0,91276.0,0.01095578]
[1765169094873,0.01095566,91277.0,91272.0,0.23008113]
[1765169095143,0.01095566,91277.0,91274.0,0.01095602]
[1765169095343,0.01095566,91277.0,91273.0,0.01095614]
[1765169096117,0.01495566,91277.0,91273.0,0.01095614]
[1765169096267,0.0109559,91275.0,91272.0,0.01095626]
[1765169096467,0.01295566,91277.0,91273.0,0.01195614]
[1765169096674,0.23007142,91276.0,91273.0,0.001]
[1765169097073,0.01095578,91276.0,91273.0,0.001]
[1765169097279,0.006,91277.0,91275.0,0.21911804]
[1765169097886,0.004,91277.0,91275.0,0.21911804]
[1765169098084,0.00107276,91281.0,91278.0,0.01095554]
[1765169099566,0.00607276,91281.0,91278.0,0.01095554]
[1765169099775,0.00807276,91281.0,91278.0,0.01195554]
[1765169100011,0.00807276,91281.0,91279.0,0.21910844]
[1765169100352,0.007,91281.0,91280.0,0.05291]
[1765169100551,0.007,91281.0,91280.0,0.05345011]
[1765169100972,0.01732,91297.0,91294.0,0.01095362]
[1765169101189,0.01743696,91297.0,91294.0,0.01095362]
[1765169101386,0.24745618,91297.0,91292.0,0.23002988]
[1765169101786,0.01095338,91296.0,91292.0,0.23003022]
[1765169102107,0.01743696,91297.0,91296.0,0.02148]
[1765169102319,0.00111696,91297.0,91296.0,0.02148]
[1765169102490,0.00111696,91297.0,91296.0,0.05291]
[1765169102700,0.00511696,91297.0,91296.0,0.05291]
[1765169103109,0.00011696,91297.0,91296.0,0.02148]
[1765169103425,0.00011696,91297.0,91294.0,0.01095362]
[1765169103426,0.01107022,91297.0,91294.0,0.01095362]
[1765169104408,0.01107022,91297.0,91293.0,0.01095374]
[1765169104624,0.01195338,91296.0,91293.0,0.01095374]
[1765169104853,0.01195338,91296.0,91292.0,0.01195386]
[1765169104854,0.21907462,91294.0,91292.0,0.001]
[1765169105059,0.02219599,91288.0,91282.0,0.01095506]
[1765169105268,0.0109547,91285.0,91282.0,0.01095506]
[1765169105673,0.02737665,91286.0,91283.0,0.01095494]
[1765169105885,0.01642207,91286.0,91283.0,0.23005313]
[1765169106114,0.00407276,91294.0,91291.0,0.01095398]
[1765169106320,0.00107276,91294.0,91293.0,0.03644]
[1765169106727,0.00107276,91294.0,91293.0,0.06787]
[1765169107386,0.00107276,91294.0,91293.0,0.01496]
[1765169107591,0.03314973,91293.0,91290.0,0.0109541]
[1765169107793,0.01202638,91294.0,91290.0,0.0109541]
[1765169108607,0.00407276,91294.0,91290.0,0.0109541]
[1765169108830,0.01502638,91294.0,91290.0,0.0109541]
[1765169109063,0.01095434,91288.0,91283.0,0.00054011]
[1765169109298,0.01095458,91286.0,91283.0,0.01149505]
[1765169109515,0.02219599,91290.0,91287.0,0.01095446]
[1765169109733,0.01095302,91299.0,91289.0,0.02148]
[1765169109982,0.00407276,91294.0,91293.0,0.02148]
[1765169110207,0.003,91294.0,91293.0,0.02148]
[1765169110651,0.01095446,91287.0,91284.0,0.01095482]
[1765169110913,0.01095554,91278.0,91274.0,0.02591602]
[1765169111119,0.01095554,91278.0,91274.0,0.01496]
[1765169111328,0.01095518,91281.0,91275.0,0.0109559]
[1765169111329,0.0109553,91280.0,91275.0,0.0109559]
[1765169111749,0.01095554,91278.0,91274.0,0.01496]
[1765169111958,0.01095566,91277.0,91273.0,0.01095614]
[1765169112170,0.23006934,91277.0,91274.0,0.005]
[1765169112369,0.21911804,91275.0,91274.0,0.002]
[1765169112576,0.21911804,91275.0,91268.0,0.01095674]
[1765169112577,0.01095638,91271.0,91268.0,0.01095674]
[1765169112781,0.01642207,91270.0,91268.0,0.01095674]
[1765169113192,0.01642207,91270.0,91268.0,0.04296685]
[1765169113391,0.01642207,91270.0,91268.0,0.00054011]
[1765169113769,0.01095638,91271.0,91268.0,0.00054011]
[1765169114290,0.01095638,91271.0,91268.0,0.00354011]
[1765169114880,0.01195638,91271.0,91268.0,0.00554011]
[1765169115090,0.01195638,91271.0,91268.0,0.00254011]
[1765169115411,0.01195638,91271.0,91268.0,0.00554011]
[1765169116191,0.001,91271.0,91270.0,0.01998]
[1765169117430,0.001,91271.0,91270.0,0.02298]
[1765169117651,0.01642207,91272.0,91270.0,0.003]
[1765169118500,0.001,91271.0,91270.0,0.005]
[1765169118911,0.01642207,91272.0,91270.0,0.003]
[1765169119143,0.2355485,91272.0,91270.0,0.003]
[1765169119373,0.02219599,91271.0,91270.0,0.005]
[1765169119721,0.2365485,91272.0,91270.0,0.005]
[1765169119902,0.25874449,91272.0,91270.0,0.005]
[1765169120107,0.03961806,91272.0,91270.0,0.002]
[1765169120333,0.001,91272.0,91271.0,0.05145]
[1765169120504,0.01728,91276.0,91273.0,0.01095614]
[1765169120709,0.01728,91276.0,91275.0,0.01581]
[1765169121778,0.01828,91276.0,91275.0,0.01581]
[1765169122106,0.01728,91276.0,91275.0,0.01681]
[1765169122551,0.01828,91276.0,91275.0,0.01781]
[1765169122805,0.01828,91276.0,91275.0,0.002]
[1765169124242,0.04154875,91276.0,91275.0,0.002]
[1765169124600,0.0517973,91276.0,91275.0,0.002]
[1765169125153,0.0507973,91276.0,91275.0,0.001]
[1765169125661,0.0517973,91276.0,91275.0,0.002]
[1765169126535,0.0517973,91276.0,91275.0,0.001]
[1765169126758,0.0109565,91270.0,91267.0,0.01095686]
[1765169126977,0.01642207,91268.0,91266.0,0.01095698]
[1765169127152,0.01642207,91268.0,91265.0,0.0109571]
[1765169127515,0.02737881,91268.0,91265.0,0.0109571]
[1765169127945,0.02737881,91268.0,91267.0,0.001]
[1765169128346,0.02737881,91268.0,91265.0,0.0109571]
[1765169128725,0.02837881,91268.0,91265.0,0.0119571]
[1765169129552,0.02837881,91268.0,91265.0,0.001]
[1765169130231,0.03137881,91268.0,91265.0,0.001]
[1765169130588,0.21913725,91267.0,91265.0,0.001]
[1765169131387,0.01095698,91266.0,91263.0,0.01095734]
[1765169131588,0.01095734,91263.0,91257.0,0.01119294]
[1765169131792,0.23010484,91263.0,91258.0,0.01095794]
[1765169132237,0.01095746,91262.0,91259.0,0.01095782]
[1765169132413,0.03951599,91265.0,91261.0,0.23010906]
[1765169132630,0.01732,91265.0,91263.0,0.21914629]
[1765169133234,0.01732,91265.0,91263.0,0.22014629]
[1765169133575,0.01732,91265.0,91263.0,0.001]
[1765169133785,0.01932,91265.0,91262.0,0.01095746]
[1765169134140,0.02032,91265.0,91262.0,0.01095746]
[1765169134323,0.02032,91265.0,91263.0,0.21914686]
[1765169134664,0.01932,91265.0,91263.0,0.21914686]
[1765169134968,0.01832,91265.0,91262.0,0.01095746]
[1765169135373,0.01832,91265.0,91261.0,0.01095758]
[1765169135528,0.01095734,91263.0,91260.0,0.0109577]
[1765169136793,0.0109577,91260.0,91257.0,0.00023488]
[1765169137003,0.21915646,91259.0,91257.0,0.00023488]
[1765169138389,0.22015646,91259.0,91257.0,0.00123488]
[1765169138968,0.02219599,91258.0,91257.0,0.00123488]
[1765169139837,0.22115646,91259.0,91257.0,0.00123488]
[1765169140017,0.22015646,91259.0,91257.0,0.00123488]
[1765169140202,0.21915646,91259.0,91257.0,0.00023488]
[1765169140404,0.001,91258.0,91257.0,0.00123488]
[1765169140804,0.01832,91258.0,91257.0,0.00123488]
[1765169141007,0.01732,91258.0,91257.0,0.00023488]
[1765169141209,0.01732,91258.0,91257.0,0.00123488]
[1765169141805,0.01732,91258.0,91257.0,0.00023488]
[1765169142121,0.01832,91258.0,91257.0,0.00023488]
[1765169142934,0.02032,91258.0,91257.0,0.00023488]
[1765169145548,0.02032,91258.0,91257.0,0.03576488]
[1765169146200,0.02032,91258.0,91257.0,0.01507488]
[1765169147811,0.02032,91258.0,91257.0,0.00023488]
[1765169148976,0.02032,91258.0,91257.0,0.01507488]
[1765169149418,0.02032,91258.0,91257.0,0.00023488]
[1765169153281,0.003,91258.0,91257.0,0.05098499]
[1765169154043,0.003,91258.0,91257.0,0.06582499]
[1765169154250,0.002,91258.0,91257.0,0.06582499]
[1765169154662,0.01095578,91276.0,91272.0,0.01095626]
[1765169154865,0.0102615,91277.0,91275.0,0.03553]
[1765169155086,0.0275815,91279.0,91276.0,0.03164578]
[1765169155297,0.0275815,91279.0,91278.0,0.02069]
[1765169156115,0.21911324,91277.0,91272.0,0.00054011]
[1765169156357,0.0109559,91275.0,91272.0,0.01149637]
[1765169156787,0.01095554,91278.0,91273.0,0.23007837]
[1765169156992,0.01095566,91277.0,91273.0,0.01095614]
[1765169157209,0.01195566,91277.0,91273.0,0.01095614]
[1765169157389,0.0109559,91275.0,91272.0,0.01249637]
[1765169158066,0.01195566,91277.0,91272.0,0.01249637]
[1765169158523,0.003,91277.0,91276.0,0.0191]
[1765169158741,0.01732,91279.0,91276.0,0.03005578]
[1765169158949,0.001,91278.0,91276.0,0.03837578]
[1765169159300,0.01732,91279.0,91277.0,0.0191]
[1765169159301,0.02827542,91279.0,91277.0,0.0191]
[1765169159504,0.01095566,91277.0,91273.0,0.01095614]
[1765169159682,0.23007394,91275.0,91272.0,0.00054011]
[1765169160073,0.0109559,91275.0,91272.0,0.00054011]
[1765169160286,0.0109559,91275.0,91272.0,0.01149637]
[1765169160514,0.01095566,91277.0,91273.0,0.01095614]
[1765169160715,0.02827542,91279.0,91276.0,0.0191]
[1765169160950,0.01095554,91278.0,91273.0,0.01149625]
[1765169161160,0.01395554,91278.0,91273.0,0.01149625]
[1765169161394,0.01732,91279.0,91277.0,0.0191]
[1765169161590,0.01732,91279.0,91278.0,0.0191]
[1765169162002,0.01832,91279.0,91277.0,0.001]
[1765169162156,0.003,91278.0,91277.0,0.001]
[1765169162358,0.003,91278.0,91274.0,0.01095602]
[1765169162359,0.003,91278.0,91275.0,0.0109559]
[1765169162580,0.02827542,91279.0,91275.0,0.0109559]
[1765169162781,0.02827542,91279.0,91273.0,0.00054011]
[1765169162782,0.01095578,91276.0,91273.0,0.01149625]
[1765169162980,0.01095566,91277.0,91274.0,0.01095602]
[1765169163573,0.01095566,91277.0,91275.0,0.001]
[1765169164159,0.23007102,91277.0,91275.0,0.001]
[1765169165007,0.21912045,91274.0,91273.0,0.00054011]
[1765169165567,0.01095578,91276.0,91273.0,0.01964011]
[1765169165814,0.01095578,91276.0,91275.0,0.0191]
[1765169166198,0.01095578,91276.0,91275.0,0.0201]
[1765169166594,0.01095578,91276.0,91275.0,0.0191]
[1765169167010,0.01195578,91276.0,91275.0,0.0201]
[1765169167394,0.001,91276.0,91275.0,0.23921804]
[1765169167626,0.001,91276.0,91275.0,0.26663804]
[1765169167841,0.004,91276.0,91275.0,0.26663804]
[1765169168097,0.001,91276.0,91275.0,0.001]
[1765169168224,0.2211884,91276.0,91275.0,0.001]
[1765169168419,0.24638439,91276.0,91275.0,0.001]
[1765169168914,0.31915174,91276.0,91275.0,0.001]
[1765169170944,0.39296048,91276.0,91275.0,0.001]
[1765169172158,0.21915886,91258.0,91257.0,0.00023488]
[1765169172366,0.23558093,91258.0,91257.0,0.00023488]
[1765169174425,0.23658093,91258.0,91257.0,0.00623488]
[1765169175222,0.23558093,91258.0,91257.0,0.00023488]
[1765169175599,0.23658093,91258.0,91257.0,0.00223488]
[1765169177360,0.01742207,91258.0,91257.0,0.01646488]
[1765169177558,0.01742207,91258.0,91257.0,0.06613499]
[1765169178671,0.01742207,91258.0,91257.0,0.03681499]
[1765169179276,0.01742207,91258.0,91257.0,0.01700499]
[1765169179889,0.01742207,91258.0,91257.0,0.00277499]
[1765169181547,0.03961806,91258.0,91257.0,0.00277499]
[1765169181964,0.03961806,91258.0,91257.0,0.00223488]
[1765169183220,0.01742207,91258.0,91257.0,0.00223488]
[1765169184615,0.04986763,91258.0,91257.0,0.00223488]
[1765169185232,0.03961806,91258.0,91257.0,0.00223488]
[1765169186198,0.01742207,91258.0,91257.0,0.00223488]
[1765169187080,0.001,91258.0,91257.0,0.06559488]
[1765169187288,0.01832,91258.0,91257.0,0.06613499]
[1765169188097,0.01832,91258.0,91257.0,0.03681499]
[1765169191920,0.01832,91258.0,91257.0,0.00277499]
[1765169193446,0.01832,91258.0,91257.0,0.00223488]
[1765169193652,0.04051599,91258.0,91257.0,0.00223488]
[1765169195498,0.05077281,91258.0,91257.0,0.00223488]
[1765169198078,0.02857682,91258.0,91257.0,0.01646488]
[1765169198827,0.02857682,91258.0,91257.0,0.03627488]
[1765169199806,0.02857682,91258.0,91257.0,0.01646488]
[1765169200005,0.02857682,91258.0,91257.0,0.00223488]
[1765169202999,0.02857682,91258.0,91257.0,0.00177104]
[1765169206235,0.02857682,91258.0,91257.0,0.06373104]
[1765169206434,0.02857682,91258.0,91257.0,0.01566104]
[1765169206630,0.02857682,91258.0,91257.0,0.00177104]
[1765169208746,0.001,91258.0,91257.0,0.06427115]
[1765169209068,0.001,91258.0,91257.0,0.07522969]
[1765169209595,0.01026714,91269.0,91266.0,0.23009663]
[1765169209793,0.23008407,91271.0,91268.0,0.03342]
[1765169210009,0.01026714,91270.0,91268.0,0.01389]
[1765169210234,0.21913245,91269.0,91268.0,0.01389]
[1765169210376,0.22939959,91269.0,91268.0,0.01389]
[1765169210599,0.01095722,91264.0,91263.0,0.01389]
[1765169211282,0.001,91258.0,91257.0,0.02738865]
[1765169211527,0.001,91258.0,91257.0,0.00254011]
[1765169211729,0.21915692,91259.0,91257.0,0.00054011]
[1765169212526,0.0109577,91260.0,91257.0,0.00054011]
[1765169212942,0.001,91259.0,91257.0,0.00254011]
[1765169213508,0.001,91259.0,91258.0,0.02854]
[1765169213806,0.001,91259.0,91258.0,0.04807]
[1765169214127,0.02827758,91261.0,91258.0,0.05956805]
[1765169214328,0.01732,91261.0,91260.0,0.01953]
[1765169214571,0.01732,91261.0,91260.0,0.02007011]
[1765169214747,0.01095638,91271.0,91267.0,0.01095686]
[1765169214975,0.03853698,91272.0,91269.0,0.03342]
[1765169215175,0.03853698,91272.0,91270.0,0.02854]
[1765169215176,0.01026072,91271.0,91270.0,0.02854]
[1765169215355,0.02827626,91272.0,91271.0,0.01953]
[1765169215555,0.02757919,91272.0,91271.0,0.01953]
[1765169215760,0.01732,91272.0,91271.0,0.04807]
[1765169216161,0.01732,91272.0,91271.0,0.01953]
[1765169216356,0.01732,91272.0,91271.0,0.04807]
[1765169216553,0.01732,91272.0,91271.0,0.01953]
[1765169216554,0.01932,91272.0,91271.0,0.01953]
[1765169217402,0.21912765,91271.0,91269.0,0.01389]
[1765169218583,0.22012765,91271.0,91269.0,0.01489]
[1765169218997,0.22112765,91271.0,91269.0,0.01489]
[1765169219843,0.002,91271.0,91269.0,0.01489]
[1765169222375,0.002,91271.0,91270.0,0.01657]
[1765169223279,0.01732,91272.0,91270.0,0.01657]
[1765169223475,0.001,91271.0,91270.0,0.01657]
[1765169223677,0.002,91271.0,91270.0,0.001]
[1765169223880,0.002,91271.0,91270.0,0.23724016]
[1765169224202,0.001,91271.0,91270.0,0.23624016]
[1765169224405,0.001,91271.0,91270.0,0.26268016]
[1765169224805,0.001,91271.0,91270.0,0.26168016]
[1765169225193,0.002,91271.0,91270.0,0.26268016]
[1765169225389,0.001,91271.0,91270.0,0.27996016]
[1765169225613,0.001,91271.0,91270.0,0.28096016]
[1765169227029,0.01728,91280.0,91279.0,0.21910844]
[1765169227236,0.01728,91280.0,91279.0,0.23567844]
[1765169227430,0.01728,91280.0,91279.0,0.26111844]
[1765169228134,0.01928,91280.0,91279.0,0.26211844]
[1765169228334,0.02228,91280.0,91279.0,0.26211844]
[1765169228922,0.02228,91280.0,91279.0,0.001]
[1765169230229,0.02228,91280.0,91279.0,0.01757]
[1765169230603,0.02228,91280.0,91279.0,0.04301]
[1765169231351,0.02228,91280.0,91279.0,0.01757]
[1765169231561,0.02228,91280.0,91279.0,0.001]
[1765169232738,0.005,91280.0,91279.0,0.26486855]
[1765169233078,0.005,91280.0,91279.0,0.29776326]
[1765169233482,0.003,91280.0,91279.0,0.29676326]
[1765169233729,0.003,91280.0,91279.0,0.31986917]
[1765169234037,0.003,91280.0,91279.0,0.33289917]
[1765169234216,0.01728,91290.0,91289.0,0.21908444]
[1765169234412,0.01739694,91290.0,91289.0,0.23611444]
[1765169234618,0.01739694,91290.0,91289.0,0.26330444]
[1765169234816,0.00011694,91290.0,91289.0,0.26384455]
[1765169234996,0.00011694,91290.0,91289.0,0.28865615]
[1765169235201,0.00011694,91290.0,91289.0,0.29136184]
[1765169235382,0.00011694,91290.0,91289.0,0.28595046]
[1765169235595,0.00111694,91290.0,91289.0,0.28595046]
[1765169235798,0.00011694,91290.0,91289.0,0.28595046]
[1765169236002,0.00011694,91290.0,91289.0,0.3039018]
[1765169236432,0.00111694,91290.0,91289.0,0.3049018]
[1765169236912,0.00011694,91290.0,91289.0,0.3039018]
[1765169237395,0.00111694,91290.0,91289.0,0.28379589]
[1765169240183,0.00111694,91290.0,91289.0,0.3059018]